Workbook

Sheet 双11活动安排
A1: 分销部双11活动计划安排
A2: 今年双11淘宝类目无活动计划，故C店流量需自主争取；
A3: 双11期间，我部计划投放46w营销推广费用为各位争取资源；
A4: 严格要求参与活动店铺具备自主推广能力：直通车及淘宝客推广（此将作为参与双12活动的必要考核条件）
A5: 部门 | B5: 项目 | C5: 子项目 | D5: 细则 | E5: 负责人 | F5: 活动时间/截止时间 | G5: 16 | H5: 17 | I5: 18 | J5: 19~21（假） | L5: 22 | M5: 23 | N5: 24 | O5: 25 | P5: 26 | Q5: 27 | R5: 28 | S5: 29 | T5: 30 | U5: 1~7（假） | W5: 8 | X5: 9 | Y5: 10 | Z5: 11 | AA5: 12 | AB5: 13 | AC5: 14 | AD5: 15 | AE5: 16 | AF5: 17 | AG5: 18 | AH5: 19 | AI5: 20 | AJ5: 21 | AK5: 22 | AL5: 23 | AM5: 24 | AN5: 25 | AO5: 26 | AP5: 27 | AQ5: 28 | AR5: 29 | AS5: 30 | AT5: 31 | AU5: 1 | AV5: 2 | AW5: 3 | AX5: 4 | AY5: 5 | AZ5: 6 | BA5: 7 | BB5: 8 | BC5: 9 | BD5: 10 | BE5: 11 | BF5: 12 | BG5: 13 | BH5: 14
A6: 总部 | B6: 预热 | C6: 9月乐活 | D6: 各分公司挑选主推产品及核心分销商参与活动，积累产品人力流量与销量 | E6: 陈惠娟 | F6: 9.15-18
C7: 9月我是品牌 | E7: 姚文琳、陈美蓉 | F7: 9.20-25
C8: 10月天天特价 | D8: 主推商品、核心分销商参与活动，向爆款迈进 | E8: 陈惠娟 | F8: 10.10-17
C9: 10月品牌清仓 | E9: 陈惠娟 | F9: 10.10-17
C10: 10月换季管家 | E10: 陈美蓉 | F10: 10.18-20
C11: 10月P4P活动 | D11: 爆款形成，开启直通车推广，参与P3P活动 | E11: 陈美蓉 | F11: 10.14-17
C12: 10月我是品牌 | D12: 我是品牌活动从10月份活动开始除了考量“日均流量、 近三十天新增会员数、近三十天的二次访问率”，还会加入“成交金额”这一个权重指数，必须选出高转化率的商品 | E12: 姚文琳 | F12: 10.20-24
C13: 不定时增加 | D13: 关注帮派动态，与类目保持密切联系；随时争取各项资源，参与各项活动
C14: 激活品牌站 | D14: 关注送集分宝，转发送淘公仔/增加品牌站粉丝，互动增加粘性 | E14: 姚文琳
C15: 双11商品团 | D15: 双11当天聚划算单品团争取（各分公司核心分销商及直营店铺） | E15: 分销/各分公司 | F15: 10.10
C16: 加大自主推广 | D16: 核心分销商均设有直通车及淘宝客推广任务，加大爆款推出 | E16: 姚文琳、陈美蓉
B17: 双11活动方案 | D17: 1元抢50现金，11元专区，折扣为主导 | E17: 文琳 | F17: 10.1
A18: 分公司 | B18: 货品计划 | D18: 确定双11主推货品及次主推货品；活动商品 | E18: 各分公司 | F18: 10.1
A19: 总部/分公司 | B19: 页面设计 | D19: 活动前后各个时间段的POP设计定稿 | E19: 总部 | F19: 10.14
B20: 钻展资源抢占 | D20: 双11前后钻展资源抢占 | E20: 总部 | F20: 10.14
B21: 活动页面 | D21: 活动承接页面设定 | E21: 总部 | F21: 10.14
A22: 总部/分公司 | B22: 售后保障 | D22: 针对双11活动期间的后勤保障安排 | E22: 各分公司 | F22: 10.27
B23: 投诉处理 | D23: 双11活动结束后投诉订单处理工作 | E23: 各分公司 | F23: 10.3
A24: 总部/分公司 | B24: 商品信息准确性 | D24: 系统的商品尺码、颜色排查，确定订单正常流转 | E24: 总部/各分公司 | F24: 10.14
B25: 分销价格一致性 | D25: 解决问题：系统抓取的采购价并非完全是供销后台的采构架 | E25: 总部/各分公司 | F25: 10.15
B26: 新经销订单流转 | D26: 更换新的经销下单，系统升级，完全自动流转 | E26: 总部 | F26: 10.8
A27: 总部/分公司 | B27: 发货保障 | D27: 保障分销订单正常发货 | E27: 各分公司
B28: 仓库人员、设备、物料安排 | D28: 1、培训储备人员：打单、发货人员2-3个，需做好人员培训安排，备用候补人员要在双十一前实际操作，确保可以正常打单发货 | E28: 各分公司 | F28: 11.2
D29: 2）培训新仓分组发货注意事项及人员安排 | E29: 各分公司 | F29: 10.2
D30: 3）缺货，异常订单，超重订单，售后等问题需做好人员培训 | E30: 各分公司 | F30: 10.3
D31: 4）沟通物料准备问题：打印机、电脑、扫描枪、快递面单、包装袋、售后卡需备齐 | E31: 各分公司 | F31: 10.25
B32: 快递安排 | D32: 1）各仓与快递公司沟通好双十一取件人员安排，全天保证有2-3人在仓库收快件 | E32: 各分公司 | F32: 10.25
D33: 2）规划好不同快递包裹放置区域以及取件人员的取件行为 | E33: 各分公司 | F33: 10.25
B34: 仓库突发情况预案 | D34: 突发情况：突发断电，电网等情况，需要做好备案，确保能正常发货。 | E34: 各分公司 | F34: 10.25
B35: 仓库发货 | D35: 1、物料设备摆放：发货区将长条桌，电脑、扫描枪、打印机设备，面单、包装袋等事先规划好 | E35: 各分公司 | F35: 11.11
D36: 2、发货注意事项提示：各仓需在发货区域写大字报，提示发货注意事项 | E36: 各分公司 | F36: 11.11
D37: 3、11月9-10确认好各仓人员安排：前期培训储备人员到仓库全天候待命，仓库总负责人11月10号之前做好人员分组岗位安排 | E37: 各分公司 | F37: 11.11
D38: 发放快递单号： 1）设置快件发件区，打单员将校验一致的订单打包好统一放在该区域 2）快递员必须在指定区域取件，防止取件杂乱 3）核单员在快递员离开时需当面核对正确面单数量及取件数量，做到出库单和出库货品数量保持一致。 | E38: 各分公司 | F38: 11.11

Sheet 联合单品聚划算计划
A1: 双11期间单品团计划
A3: 流量预计 | H3: 销量预计 | O3: 参选 理由
A4: 序号 | B4: 流量分类 | C4: 流量来源 | D4: 预计流量（UV） | E4: 预计单品转化率 | F4: 预计单品销量 | H4: 参选商家 | I4: 商家链接 | J4: 产品类型 | K4: 商品链接 | L4: 单价 | M4: 预计成交数量 | N4: 金额 | O4: 参选 理由
A5: 1 | B5: 店铺流量 | C5: 聚划算 | D5: 1000000 | E5: 0.05 | F5: =D5*E5 -> 50000
C6: 店铺自然流量 | D6: 30000 | E6: 0.015 | F6: =D6*E6 -> 450
C7: 店铺提前预热 | D7: 30000 | E7: 0.02 | F7: 600
C8: 活动EDM群发 | D8: 5000 | E8: 0.01 | F8: 50
C9: 短信营销 | D9: 5000 | E9: 0.01 | F9: 50
C10: 邮件群发 | D10: 5000 | E10: 0.01 | F10: 50
A11: 2 | B11: 投放资源 | C11: 麦麦钻展资源（暂定） | D11: 150000 | E11: 0.01 | F11: =D11*E11 -> 1500
A12: 3 | B12: 其他资源 | C12: 待定
A13: 合计 | D13: =SUM(D5:D11) -> 1225000 | E13: =SUM(E5:E11) -> 0.125 | F13: =SUM(F5:F11) -> 52700

Sheet 双11活动方案 (hidden)
B3: 分销部指标-1250万
B4: 账号 | C4: 销售占比 | H4: 突破值
D5: 9月 | E5: 10月 | F5: 11月 | G5: 12月
B6: 361度分销平台 | C6: =H6/H14 -> 0.092 | D6: 300000 | E6: 250000 | F6: 300000 | G6: 300000 | H6: =SUM(D6:G6) -> 1150000
B7: 361度品牌分销1（山西） | C7: =H7/H14 -> 0.224 | D7: 600000 | E7: 500000 | F7: 1000000 | G7: 700000 | H7: =SUM(D7:G7) -> 2800000
B8: 361度品牌分销2（石家庄） | C8: =H8/H14 -> 0.16 | D8: 400000 | E8: 200000 | F8: 1000000 | G8: 400000 | H8: 2000000
B9: 361度品牌分销3（郑州） | C9: =H9/H14 -> 0.056 | D9: 150000 | E9: 150000 | F9: 300000 | G9: 100000 | H9: 700000
B10: 361度品牌分销4（济南） | C10: =H10/H14 -> 0.256 | D10: 600000 | E10: 600000 | F10: 1200000 | G10: 800000 | H10: 3200000
B11: 361度品牌分销5（武汉） | C11: =H11/H14 -> 0.16 | D11: 300000 | E11: 200000 | F11: 1000000 | G11: 500000 | H11: 2000000
B12: 361度品牌分销6（广州） | C12: =H12/H14 -> 0.052 | D12: 150000 | E12: 100000 | F12: 200000 | G12: 200000 | H12: 650000
B13: 361度品牌分销7（柳州州） | H13: 0
B14: 合计 | C14: 1 | D14: =SUM(D6:D12) -> 2500000 | E14: 2000000 | F14: =SUM(F6:F13) -> 5000000 | G14: 3000000 | H14: =SUM(H6:H13) -> 12500000

Sheet Sheet1 (hidden)
